fUST/lending_fUST_20240919
["ID","MTS","AMOUNT","RATE_DAILY","PERIOD"]
[338522401,1726715496310,944.09,0.00024,120]
[338522402,1726715496429,1010.44,0.00024,120]
[338522403,1726715496577,944.09,0.00024,120]
[338522404,1726715496706,1010.44,0.00024,120]
[338522405,1726715496836,944.27277709,0.00024,120]
[338522406,1726715497045,1010.44,0.00024,120]
[338522407,1726715497333,1010.44,0.00024,120]
[338522408,1726715497637,1010.44,0.00024,120]
[338522409,1726715497923,1010.44,0.00024,120]
[338522410,1726715497991,949.94,0.00024,120]
[338522411,1726715498184,1010.67,0.00024,120]
[338522412,1726715498905,2952.74,0.00024,120]
[338522413,1726715500097,500.0,0.00024,120]
[338522414,1726715500258,1323.3,0.00024,120]
[338522415,1726715500671,1211.11,0.00024,120]
[338522416,1726715502210,2176.3,0.00024,120]
[338522417,1726715504489,500.0,0.00024,120]
[338522418,1726715504745,500.0,0.00024,120]
[338522419,1726715505534,626.66,0.00024,120]
[338522420,1726715506786,1039.04,0.00024,120]
[338522421,1726715507189,500.0,0.00024,120]
[338522422,1726715507628,1017.64,0.00024,120]
[338522423,1726715507884,743.87,0.00024,120]
[338522424,1726715508250,500.0,0.00024,120]
[338522425,1726715508908,1152.81,0.00024,120]
[338522426,1726715509717,500.0,0.00024,120]
[338522427,1726715510271,305.90057556,0.00024,120]
[338522428,1726715510760,500.0,0.00024,120]
[338522429,1726715511251,967.05,0.00024,120]
[338522430,1726715512050,500.17779532,0.00024,120]
[338522431,1726715512337,397.76789976,0.00024,120]
[338522432,1726715513338,500.0,0.00024,120]
[338522433,1726715513444,856.29,0.00024,120]
[338522434,1726715514592,500.0,0.00024,120]
[338522435,1726715514660,500.0,0.00024,120]
[338522436,1726715514736,500.0,0.00024,120]
[338522437,1726715516037,500.0,0.00024,120]
[338522438,1726715516324,989.99,0.00024,120]
[338522439,1726715516648,500.0,0.00024,120]
[338522440,1726715518791,866.49,0.00024,120]
[338522441,1726715519043,3867.82,0.00024,120]
[338522442,1726715519285,2951.96,0.00024,120]
[338522443,1726715519954,500.0,0.00024,120]
[338522444,1726715521679,1113.57,0.00024,120]
[338522445,1726715522281,1370.9,0.00024,120]
[338522446,1726715523304,802.2,0.00024,120]
[338522447,1726715523573,802.2,0.00024,120]
[338522448,1726715523642,500.0,0.00024,120]
[338522449,1726715523881,802.2,0.00024,120]
[338522450,1726715524137,802.2,0.00024,120]
[338522451,1726715524206,500.0,0.00024,120]
[338522452,1726715524456,802.2,0.00024,120]
[338522453,1726715524932,500.0,0.00024,120]
[338522454,1726715525033,802.2,0.00024,120]
[338522455,1726715525121,802.2,0.00024,120]
[338522456,1726715525329,802.2,0.00024,120]
[338522457,1726715525664,802.2,0.00024,120]
[338522458,1726715525830,557.11,0.00024,120]
[338522459,1726715525915,802.2,0.00024,120]
[338522460,1726715526183,802.2,0.00024,120]
[338522461,1726715526414,500.0,0.00024,120]
[338522462,1726715526489,802.2,0.00024,120]
[338522463,1726715526901,802.2,0.00024,120]
[338522464,1726715526969,1218.36,0.00024,120]
[338522465,1726715527048,802.2,0.00024,120]
[338522466,1726715527237,802.2,0.00024,120]
[338522467,1726715527493,802.2,0.00024,120]
[338522468,1726715527765,802.2,0.00024,120]
[338522469,1726715528071,802.2,0.00024,120]
[338522470,1726715528328,802.2,0.00024,120]
[338522471,1726715528623,802.2,0.00024,120]
[338522472,1726715528837,802.2,0.00024,120]
[338522473,1726715529130,500.0,0.00024,120]
[338522474,1726715529522,560.08,0.00024,120]
[338522475,1726715530782,592.76,0.00024,120]
[338522476,1726715531986,1048.54,0.00024,120]
[338522477,1726715532055,910.18,0.00024,120]
[338522478,1726715533521,500.0,0.00024,120]
[338522479,1726715534039,802.2,0.00024,120]
[338522480,1726715534330,802.2,0.00024,120]
[338522481,1726715534610,802.3122254,0.00024,120]
[338522482,1726715534862,500.0,0.00024,120]
[338522483,1726715535788,500.0,0.00024,120]
[338522484,1726715537290,1850.16,0.00024,120]
[338522485,1726715538017,522.54,0.00024,120]
[338522486,1726715539882,1186.77,0.00024,120]
[338522487,1726715540540,782.06,0.00024,120]
[338522488,1726715540995,500.0,0.00024,120]
[338522489,1726715541694,738.58,0.00024,120]
[338522490,1726715541840,500.0,0.00024,120]
[338522491,1726715541900,224.85291668,0.00024,120]
[338522492,1726715542993,500.0,0.00024,120]
[338522493,1726715543682,500.0,0.00024,120]
[338522494,1726715544104,500.0,0.00024,120]
[338522495,1726715545925,500.0,0.00024,120]
[338522496,1726715546008,500.0,0.00024,120]
[338522497,1726715546500,4220.98,0.00024,120]
[338522498,1726715546864,995.14,0.00024,120]
[338522499,1726715547082,1020.94,0.00024,120]
[338522500,1726715547736,1051.06,0.00024,120]
[338522501,1726715548005,500.0,0.00024,120]
[338522502,1726715549461,500.0,0.00024,120]
[338522503,1726715549662,500.0,0.00024,120]
[338522504,1726715550295,1177.89,0.00024,120]
[338522505,1726715551147,500.0,0.00024,120]
[338522506,1726715552296,500.0,0.00024,120]
[338522507,1726715552388,291.81644222,0.00024,120]
[338522508,1726715555507,557.64,0.00024,120]
[338522509,1726715555597,500.21159207,0.00024,120]
[338522510,1726715556579,500.0,0.00024,120]
[338522511,1726715556656,500.0,0.00024,120]
[338522512,1726715556901,500.0,0.00024,120]
[338522513,1726715557530,2755.76,0.00024,120]
[338522514,1726715558300,500.0,0.00024,120]
[338522515,1726715561376,1439.37,0.00024,120]
[338522516,1726715564339,889.01,0.00024,120]
[338522517,1726715564422,500.0,0.00024,120]
[338522518,1726715564982,1362.98,0.00024,120]
[338522519,1726715567090,500.0,0.00024,120]
[338522520,1726715567363,999.36,0.00024,120]
[338522521,1726715570077,1177.26,0.00024,120]
[338522522,1726715570459,791.72,0.00024,120]
[338522523,1726715571124,630.75,0.00024,120]
[338522524,1726715572515,500.0,0.00024,120]
[338522525,1726715572765,490.60105868,0.00024,120]
[338522526,1726715573309,1000.0,0.00024,120]
[338522527,1726715573806,500.0,0.00024,120]
[338522528,1726715574119,2250.47,0.00024,120]
[338522529,1726715574180,522.22,0.00024,120]
[338522530,1726715574606,561.18,0.00024,120]
[338522531,1726715575015,2064.75,0.00024,120]
[338522532,1726715575853,1390.59,0.00024,120]
[338522533,1726715577860,497.82633769,0.00024,120]
[338522534,1726715577916,500.0,0.00024,120]
[338522535,1726715579156,500.0,0.00024,120]
[338522536,1726715579484,500.0,0.00024,120]
[338522537,1726715580126,1036.85,0.00024,120]
[338522538,1726715580395,500.0,0.00024,120]
[338522539,1726715581543,500.0,0.00024,120]
[338522540,1726715581851,1272.64,0.00024,120]
[338522541,1726715582110,500.0,0.00024,120]
[338522542,1726715584206,1160.38,0.00024,120]
[338522543,1726715584989,500.0,0.00024,120]
[338522544,1726715585228,500.0,0.00024,120]
[338522545,1726715585403,500.0,0.00024,120]
[338522546,1726715585475,976.44,0.00024,120]
[338522547,1726715585707,500.0,0.00024,120]
[338522548,1726715585878,2064.33,0.00024,120]
[338522549,1726715586796,500.0,0.00024,120]
[338522550,1726715587763,1388.74,0.00024,120]
[338522551,1726715589671,546.74,0.00024,120]
[338522552,1726715589736,799.79,0.00024,120]
[338522553,1726715591063,1188.1,0.00024,120]
[338522554,1726715592222,500.0,0.00024,120]
[338522555,1726715592306,807.7,0.00024,120]
[338522556,1726715592484,685.07,0.00024,120]
[338522557,1726715592555,723.96,0.00024,120]
[338522558,1726715597206,1457.57,0.00024,120]
[338522559,1726715597369,623.13358891,0.00024,120]
[338522560,1726715598928,1027.74,0.00024,120]
[338522561,1726715599088,500.0,0.00024,120]
[338522562,1726715600596,588.97,0.00024,120]
[338522563,1726715600966,1375.3,0.00024,120]
[338522564,1726715601024,875.13,0.00024,120]
[338522565,1726715603022,500.0,0.00024,120]
[338522566,1726715606086,500.0,0.00024,120]
[338522567,1726715606332,500.0,0.00024,120]
[338522568,1726715606735,378.38465828,0.00024,120]
[338522569,1726715607067,1153.79,0.00024,120]
[338522570,1726715607451,500.0,0.00024,120]
[338522571,1726715607894,953.6,0.00024,120]
[338522572,1726715607959,963.78,0.00024,120]
[338522573,1726715609096,500.0,0.00024,120]
[338522574,1726715609541,500.0,0.00024,120]
[338522575,1726715609774,518.56323194,0.00024,120]
[338522576,1726715610962,500.0,0.00024,120]
[338522577,1726715611272,809.78,0.00024,120]
[338522578,1726715611364,1362.6,0.00024,120]
[338522579,1726715611508,809.78,0.00024,120]
[338522580,1726715611565,500.0,0.00024,120]
[338522581,1726715611787,809.78,0.00024,120]
[338522582,1726715612037,500.77100949,0.00024,120]
[338522583,1726715612096,809.78,0.00024,120]
[338522584,1726715612593,809.78,0.00024,120]
[338522585,1726715612879,809.78,0.00024,120]
[338522586,1726715612990,622.48,0.00024,120]
[338522587,1726715613180,809.78,0.00024,120]
[338522588,1726715613442,809.78,0.00024,120]
[338522589,1726715613714,809.78,0.00024,120]
[338522590,1726715613777,500.0,0.00024,120]
[338522591,1726715613972,809.78,0.00024,120]
[338522592,1726715614235,500.0,0.00024,120]
[338522593,1726715614300,809.78,0.00024,120]
[338522594,1726715614512,809.78,0.00024,120]
[338522595,1726715614793,809.78,0.00024,120]
[338522596,1726715615082,809.78,0.00024,120]
[338522597,1726715615403,809.78,0.00024,120]
[338522598,1726715615704,809.78,0.00024,120]
[338522599,1726715615853,500.0,0.00024,120]
[338522600,1726715616048,809.78,0.00024,120]
[338522601,1726715616443,809.78,0.00024,120]
[338522602,1726715616739,809.78,0.00024,120]
[338522603,1726715616990,809.78,0.00024,120]
[338522604,1726715617718,809.78,0.00024,120]
[338522605,1726715617790,993.39,0.00024,120]
[338522606,1726715617854,809.78,0.00024,120]
[338522607,1726715618063,809.78,0.00024,120]
[338522608,1726715618373,809.79927847,0.00024,120]
[338522609,1726715618447,1142.73,0.00024,120]
[338522610,1726715618798,577.26,0.00024,120]
[338522611,1726715619524,1020.25,0.00024,120]
[338522612,1726715619611,573.4,0.00024,120]
[338522613,1726715620266,500.0,0.00024,120]
[338522614,1726715621104,500.0,0.00024,120]
[338522615,1726715622328,500.0,0.00024,120]
[338522617,1726715625866,1640.74,0.00024,120]
[338522618,1726715625931,500.0,0.00024,120]
[338522619,1726715626830,500.0,0.00024,120]
[338522620,1726715627359,2190.51,0.00024,120]
[338522621,1726715627621,746.94,0.00024,120]
[338522622,1726715627701,12687.26,0.00024,120]
[338522623,1726715630064,500.0,0.00024,120]
[338522624,1726715630140,500.0,0.00024,120]
[338522625,1726715630198,713.66,0.00024,120]
[338522626,1726715631600,500.0,0.00024,120]
[338522627,1726715632406,500.0,0.00024,120]
[338522628,1726715632471,500.0,0.00024,120]
[338522629,1726715633443,3401.26,0.00024,120]
[338522630,1726715634053,501.38,0.00024,120]
[338522631,1726715634827,1035.4,0.00024,120]
[338522632,1726715635502,500.0,0.00024,120]
[338522633,1726715635567,1059.01,0.00024,120]
[338522634,1726715635715,500.0,0.00024,120]
[338522635,1726715636248,1521.35,0.00024,120]
[338522636,1726715636512,500.0,0.00024,120]
[338522637,1726715637892,500.0,0.00024,120]
[338522638,1726715638858,500.0,0.00024,120]
[338522639,1726715640730,571.38,0.00024,120]
[338522640,1726715640917,500.0,0.00024,120]
[338522641,1726715640977,500.0,0.00024,120]
[338522642,1726715641473,500.0,0.00024,120]
[338522643,1726715641566,5463.06,0.00024,120]
[338522644,1726715641708,504.1279018,0.00024,120]
[338522645,1726715644463,1071.97,0.00024,120]
[338522646,1726715644780,500.0,0.00024,120]
[338522647,1726715645620,500.0,0.00024,120]
[338522648,1726715645685,1419.34,0.00024,120]
[338522649,1726715645864,1021.71,0.00024,120]
[338522650,1726715646127,778.71,0.00024,120]
[338522651,1726715647387,1006.08,0.00024,120]
[338522652,1726715647992,1014.96,0.00024,120]
[338522653,1726715649257,500.0,0.00024,120]
[338522654,1726715649478,655.08,0.00024,120]
[338522655,1726715650163,500.0,0.00024,120]
[338522656,1726715652638,641.89,0.00024,120]
[338522657,1726715652969,500.0,0.00024,120]
[338522658,1726715654156,500.0,0.00024,120]
[338522659,1726715654337,500.0,0.00024,120]
[338522660,1726715654440,916.59,0.00024,120]
[338522661,1726715654503,500.0,0.00024,120]
[338522662,1726715655791,1005.57,0.00024,120]
[338522663,1726715656558,500.0,0.00024,120]
[338522664,1726715657619,1157.75,0.00024,120]
[338522665,1726715658212,1352.07,0.00024,120]
[338522666,1726715659451,500.0,0.00024,120]
[338522667,1726715660279,500.0,0.00024,120]
[338522668,1726715661551,500.0,0.00024,120]
[338522669,1726715661650,1091.61,0.00024,120]
[338522670,1726715663811,726.6,0.00024,120]
[338522671,1726715664249,500.0,0.00024,120]
[338522672,1726715665168,963.39,0.00024,120]
[338522673,1726715666160,627.19625182,0.00024,120]
[338522674,1726715666430,500.0,0.00024,120]
[338522675,1726715668092,500.0,0.00024,120]
[338522676,1726715668388,500.0,0.00024,120]
[338522677,1726715668457,500.0,0.00024,120]
[338522678,1726715668826,500.0,0.00024,120]
[338522679,1726715669483,887.61,0.00024,120]
[338522680,1726715670796,500.0,0.00024,120]
[338522681,1726715670858,500.0,0.00024,120]
[338522682,1726715673483,500.0,0.00024,120]
[338522683,1726715673589,500.0,0.00024,120]
[338522684,1726715673794,500.0,0.00024,120]
[338522685,1726715674999,500.0,0.00024,120]
[338522686,1726715675075,508.40138029,0.00024,120]
[338522687,1726715675137,500.0,0.00024,120]
[338522688,1726715676449,500.0,0.00024,120]
[338522689,1726715676533,500.0,0.00024,120]
[338522690,1726715676590,546.13,0.00024,120]
[338522691,1726715676649,635.66,0.00024,120]
[338522692,1726715676765,500.0,0.00024,120]
[338522693,1726715676896,1193.9,0.00024,120]
[338522694,1726715677092,500.0,0.00024,120]
[338522695,1726715677498,1807.67,0.00024,120]
[338522696,1726715677681,1002.57,0.00024,120]
[338522697,1726715677987,595.54,0.00024,120]
[338522698,1726715678174,500.0,0.00024,120]
[338522699,1726715678611,1137.34,0.00024,120]
[338522700,1726715679402,1160.65,0.00024,120]
[338522701,1726715680603,701.94,0.00024,120]
[338522702,1726715680666,956.97,0.00024,120]
[338522703,1726715681287,1216.29,0.00024,120]
[338522704,1726715682922,500.0,0.00024,120]
[338522705,1726715684021,500.0,0.00024,120]
[338522706,1726715684604,674.17,0.00024,120]
[338522707,1726715684685,500.0,0.00024,120]
[338522708,1726715685753,500.0,0.00024,120]
[338522709,1726715686031,500.0,0.00024,120]
[338522710,1726715686099,500.0,0.00024,120]
[338522711,1726715686349,855.53,0.00024,120]
[338522712,1726715687245,1048.5,0.00024,120]
[338522713,1726715688132,435.76925064,0.00024,120]
[338522714,1726715688231,2792.17,0.00024,120]
[338522715,1726715688555,500.0,0.00024,120]
[338522716,1726715690109,2276.06,0.00024,120]
[338522717,1726715690169,500.0,0.00024,120]
[338522718,1726715690381,2276.06,0.00024,120]
[338522719,1726715690626,2276.06,0.00024,120]
[338522720,1726715690890,2276.06,0.00024,120]
[338522721,1726715691151,2276.06,0.00024,120]
[338522722,1726715691418,2276.06,0.00024,120]
[338522723,1726715691690,2276.06,0.00024,120]
[338522724,1726715691755,737.17,0.00024,120]
[338522725,1726715691934,2276.06,0.00024,120]
[338522726,1726715692061,737.17,0.00024,120]
[338522727,1726715692194,500.0,0.00024,120]
[338522728,1726715692303,2276.06,0.00024,120]
[338522729,1726715692490,502.31821542,0.00024,120]
[338522730,1726715692562,1001.06,0.00024,120]
[338522731,1726715692648,2276.06,0.00024,120]
[338522732,1726715692721,737.17,0.00024,120]
[338522733,1726715693408,1001.06,0.00024,120]
[338522734,1726715693473,737.17,0.00024,120]
[338522735,1726715693534,2276.06,0.00024,120]
[338522736,1726715693592,500.0,0.00024,120]
[338522737,1726715693655,500.0,0.00024,120]
[338522738,1726715693731,1001.06,0.00024,120]
[338522739,1726715693804,2276.06,0.00024,120]
[338522740,1726715693862,500.0,0.00024,120]
[338522741,1726715693922,737.17,0.00024,120]
[338522742,1726715693984,500.0,0.00024,120]
[338522743,1726715694045,1001.06,0.00024,120]
[338522744,1726715694112,2276.06,0.00024,120]
[338522745,1726715694223,500.0,0.00024,120]
[338522746,1726715694420,500.0,0.00024,120]
[338522747,1726715694481,1001.06,0.00024,120]
[338522748,1726715694538,2276.06,0.00024,120]
[338522749,1726715694595,500.0,0.00024,120]
[338522750,1726715694686,737.17,0.00024,120]
[338522751,1726715694759,1001.06,0.00024,120]
[338522752,1726715694821,500.0,0.00024,120]
[338522753,1726715694893,500.0,0.00024,120]
[338522754,1726715694955,737.17,0.00024,120]
[338522755,1726715695027,2276.06,0.00024,120]
[338522756,1726715695088,500.0,0.00024,120]
[338522757,1726715695150,500.0,0.00024,120]
[338522758,1726715695214,1001.06,0.00024,120]
[338522759,1726715695281,500.0,0.00024,120]
[338522760,1726715695349,2276.06,0.00024,120]
[338522761,1726715695414,737.17,0.00024,120]
[338522762,1726715695476,1001.06,0.00024,120]
[338522763,1726715695537,500.0,0.00024,120]
[338522764,1726715695601,500.0,0.00024,120]
[338522765,1726715695662,500.0,0.00024,120]
[338522766,1726715695726,2276.06,0.00024,120]
[338522767,1726715695784,1001.06,0.00024,120]
[338522768,1726715695848,500.0,0.00024,120]
[338522769,1726715695906,500.0,0.00024,120]
[338522770,1726715695990,2276.06,0.00024,120]
[338522771,1726715696048,500.0,0.00024,120]
[338522772,1726715696113,1001.06,0.00024,120]
[338522773,1726715696177,500.0,0.00024,120]
[338522774,1726715696238,500.0,0.00024,120]
[338522775,1726715696301,500.0,0.00024,120]
[338522776,1726715696361,2276.06,0.00024,120]
[338522777,1726715696508,1001.06,0.00024,120]
[338522778,1726715696569,500.0,0.00024,120]
[338522779,1726715696627,500.0,0.00024,120]
[338522780,1726715696685,500.0,0.00024,120]
[338522781,1726715696743,2276.06,0.00024,120]
[338522782,1726715696802,1001.06,0.00024,120]
[338522783,1726715696867,500.0,0.00024,120]
[338522784,1726715696925,500.0,0.00024,120]
[338522785,1726715696984,500.0,0.00024,120]
[338522786,1726715697040,2276.06,0.00024,120]
[338522787,1726715697096,737.17,0.00024,120]
[338522788,1726715697154,1001.06,0.00024,120]
[338522789,1726715697209,500.0,0.00024,120]
[338522790,1726715697268,500.0,0.00024,120]
[338522791,1726715697323,500.0,0.00024,120]
[338522792,1726715697378,2276.06,0.00024,120]
[338522793,1726715697435,737.17,0.00024,120]
[338522794,1726715697495,1001.06,0.00024,120]
[338522795,1726715697552,500.0,0.00024,120]
[338522796,1726715697606,500.0,0.00024,120]
[338522797,1726715697865,543.94513152,0.00024,120]
[338522798,1726715697924,737.17,0.00024,120]
[338522799,1726715697983,1001.06,0.00024,120]
[338522800,1726715698040,500.0,0.00024,120]
[338522801,1726715698098,500.0,0.00024,120]
[338522802,1726715698155,737.17,0.00024,120]
[338522803,1726715698247,2276.06,0.00024,120]
[338522804,1726715698304,434.31746171,0.00024,120]
[338522805,1726715698361,1001.06,0.00024,120]
[338522806,1726715698421,500.0,0.00024,120]
[338522807,1726715698478,737.17,0.00024,120]
[338522808,1726715698537,2276.20892637,0.00024,120]
[338522809,1726715698597,1001.06,0.00024,120]
[338522810,1726715698654,500.0,0.00024,120]
[338522811,1726715698713,500.0,0.00024,120]
[338522812,1726715698771,737.17,0.00024,120]
[338522813,1726715698831,1001.06,0.00024,120]
[338522814,1726715698886,500.0,0.00024,120]
[338522815,1726715698945,737.17,0.00024,120]
[338522816,1726715699010,500.0,0.00024,120]
[338522817,1726715699076,737.17,0.00024,120]
[338522818,1726715699134,500.0,0.00024,120]
[338522819,1726715699203,1001.06,0.00024,120]
[338522820,1726715699262,737.17,0.00024,120]
[338522821,1726715699318,500.0,0.00024,120]
[338522822,1726715699382,1001.06,0.00024,120]
[338522823,1726715699440,500.0,0.00024,120]
[338522824,1726715699503,737.17,0.00024,120]
[338522825,1726715699564,500.0,0.00024,120]
[338522826,1726715699629,1001.06,0.00024,120]
[338522827,1726715699713,737.17,0.00024,120]
[338522828,1726715699775,500.0,0.00024,120]
[338522829,1726715699843,1001.06,0.00024,120]
[338522830,1726715699939,924.89,0.00024,120]
[338522831,1726715700096,737.17,0.00024,120]
[338522832,1726715700162,500.0,0.00024,120]
[338522833,1726715700231,1001.06,0.00024,120]
[338522834,1726715700302,924.89,0.00024,120]
[338522835,1726715700375,737.17,0.00024,120]
[338522836,1726715700435,500.0,0.00024,120]
[338522837,1726715700503,1001.14584011,0.00024,120]
[338522838,1726715700569,500.0,0.00024,120]
[338522839,1726715700657,924.89,0.00024,120]
[338522840,1726715700795,737.17,0.00024,120]
[338522841,1726715700883,444.32554551,0.00024,120]
[338522842,1726715700969,924.89,0.00024,120]
[338522843,1726715701027,737.17,0.00024,120]
[338522844,1726715701209,924.89,0.00024,120]
[338522845,1726715701290,737.1910956,0.00024,120]
[338522846,1726715701374,924.89,0.00024,120]
[338522847,1726715701516,500.0,0.00024,120]
[338522848,1726715701592,924.89,0.00024,120]
[338522849,1726715701972,500.0,0.00024,120]
[338522850,1726715702189,924.89,0.00024,120]
[338522851,1726715702359,924.89,0.00024,120]
[338522852,1726715702719,924.89,0.00024,120]
[338522853,1726715702809,924.89,0.00024,120]
[338522854,1726715703048,924.89,0.00024,120]
[338522855,1726715703237,924.89,0.00024,120]
[338522856,1726715703884,924.89,0.00024,120]
[338522857,1726715703961,2041.77,0.00024,120]
[338522858,1726715704032,924.89,0.00024,120]
[338522859,1726715704108,500.0,0.00024,120]
[338522860,1726715704179,924.89,0.00024,120]
[338522861,1726715704252,500.0,0.00024,120]
[338522862,1726715704320,2041.77,0.00024,120]
[338522863,1726715704390,500.0,0.00024,120]
[338522864,1726715704570,924.89,0.00024,120]
[338522865,1726715704658,2041.77,0.00024,120]
[338522866,1726715704730,500.0,0.00024,120]
[338522867,1726715704875,924.89,0.00024,120]
[338522868,1726715704963,2041.77,0.00024,120]
[338522869,1726715705038,728.69,0.00024,120]
[338522870,1726715705118,500.0,0.00024,120]
[338522871,1726715705192,2388.2,0.00024,120]
[338522872,1726715705265,924.89,0.00024,120]
[338522873,1726715705349,2041.77,0.00024,120]
[338522874,1726715705432,2388.2,0.00024,120]
[338522876,1726715705504,924.89,0.00024,120]
[338522877,1726715705581,2041.77,0.00024,120]
[338522878,1726715705653,2388.2,0.00024,120]
[338522879,1726715705728,924.89,0.00024,120]
[338522880,1726715705849,2041.77,0.00024,120]
[338522881,1726715705926,2388.2,0.00024,120]
[338522882,1726715705997,924.89,0.00024,120]
[338522883,1726715706078,2041.77,0.00024,120]
[338522884,1726715706147,2388.2,0.00024,120]
[338522885,1726715706215,500.0,0.00024,120]
[338522886,1726715706284,924.89,0.00024,120]
[338522887,1726715706412,2041.77,0.00024,120]
[338522888,1726715706532,2388.2,0.00024,120]
[338522889,1726715706598,924.96776447,0.00024,120]
[338522890,1726715706715,2041.77,0.00024,120]
[338522891,1726715706782,2388.2,0.00024,120]
[338522892,1726715706858,2041.77,0.00024,120]
[338522893,1726715706971,2041.77,0.00024,120]
[338522894,1726715707222,2041.77,0.00024,120]
[338522895,1726715707467,2041.77,0.00024,120]
[338522896,1726715708112,2041.77,0.00024,120]
[338522897,1726715708182,877.97,0.00024,120]
[338522898,1726715708367,2041.77,0.00024,120]
[338522899,1726715708437,877.97,0.00024,120]
[338522900,1726715708810,500.0,0.00024,120]
[338522901,1726715708881,500.0,0.00024,120]
[338522902,1726715708953,877.97,0.00024,120]